[Event "*** Titled Tuesday Blitz"]
[Site "Chess.com"]
[Date "2020.11.24"]
[Round "9"]
[White "Gerodot71"]
[Black "sara_khm"]
[Result "0-1"]
[WhiteElo "2483"]
[BlackElo "2596"]
[TimeControl "180+1"]
[EndTime "12:04:15 PST"]
[Termination "sara_khm won on time"]

1. d4 {[%clk 0:03:00.9]} 1... d5 {[%clk 0:02:58.8]} 2. c4 {[%clk 0:03:00.9]}
2... e6 {[%clk 0:02:58.7]} 3. Nf3 {[%clk 0:03:00.9]} 3... a6 {[%clk 0:02:58.7]}
4. g3 {[%clk 0:03:00.1]} 4... dxc4 {[%clk 0:02:55.1]} 5. Bg2 {[%clk 0:03:00.3]}
5... Nf6 {[%clk 0:02:53.2]} 6. O-O {[%clk 0:02:59.6]} 6... Be7 {[%clk
0:02:52.6]} 7. a4 {[%clk 0:02:56.4]} 7... O-O {[%clk 0:02:50.2]} 8. Qc2 {[%clk
0:02:56.2]} 8... a5 {[%clk 0:02:49.8]} 9. Qxc4 {[%clk 0:02:54.4]} 9... Na6
{[%clk 0:02:49.6]} 10. Bf4 {[%clk 0:02:52.4]} 10... Nd5 {[%clk 0:02:47.2]} 11.
Qc1 {[%clk 0:02:50.4]} 11... Bd7 {[%clk 0:02:36.3]} 12. Nc3 {[%clk 0:02:49.2]}
12... Nxf4 {[%clk 0:02:33.5]} 13. gxf4 {[%clk 0:02:48.8]} 13... c5 {[%clk
0:02:33.6]} 14. d5 {[%clk 0:02:42.3]} 14... c4 {[%clk 0:02:28.2]} 15. Ne5 {[%clk
0:02:39.4]} 15... Nc5 {[%clk 0:02:27.2]} 16. Qe3 {[%clk 0:02:30.4]} 16... exd5
{[%clk 0:02:11.2]} 17. Nxd5 {[%clk 0:02:28.5]} 17... Re8 {[%clk 0:01:54.8]} 18.
Rad1 {[%clk 0:02:21.6]} 18... Bd6 {[%clk 0:01:31.5]} 19. Qg3 {[%clk 0:02:12.1]}
19... Bxa4 {[%clk 0:01:30.9]} 20. Rd4 {[%clk 0:02:00.7]} 20... Nb3 {[%clk
0:01:21.5]} 21. Rxc4 {[%clk 0:01:57.9]} 21... Bb5 {[%clk 0:01:11.5]} 22. Qxb3
{[%clk 0:01:56.3]} 22... Bxc4 {[%clk 0:01:09.5]} 23. Nxc4 {[%clk 0:01:57.2]}
23... Rxe2 {[%clk 0:01:03.3]} 24. Nce3 {[%clk 0:01:33.1]} 24... Bc5 {[%clk
0:00:57.8]} 25. Qc3 {[%clk 0:01:14.9]} 25... Bxe3 {[%clk 0:00:56.1]} 26. fxe3
{[%clk 0:01:15.6]} 26... Rxg2+ {[%clk 0:00:48.7]} 27. Kxg2 {[%clk 0:01:13.1]}
27... Qxd5+ {[%clk 0:00:49.1]} 28. Rf3 {[%clk 0:01:12.1]} 28... b5 {[%clk
0:00:48.4]} 29. f5 {[%clk 0:01:07]} 29... b4 {[%clk 0:00:48.4]} 30. Qc7 {[%clk
0:01:06.6]} 30... Re8 {[%clk 0:00:47.2]} 31. f6 {[%clk 0:01:01.8]} 31... h6
{[%clk 0:00:42.9]} 32. Qc1 {[%clk 0:00:23.5]} 32... Re5 {[%clk 0:00:37.5]} 33.
fxg7 {[%clk 0:00:22.2]} 33... Rg5+ {[%clk 0:00:31.2]} 34. Kf2 {[%clk 0:00:22.4]}
34... Rxg7 {[%clk 0:00:27.9]} 35. Rg3 {[%clk 0:00:19]} 35... Qf5+ {[%clk
0:00:25.6]} 36. Kg2 {[%clk 0:00:18.4]} 36... Rxg3+ {[%clk 0:00:25.4]} 37. hxg3
{[%clk 0:00:19.3]} 37... Qe4+ {[%clk 0:00:25.3]} 38. Kf2 {[%clk 0:00:19.7]}
38... a4 {[%clk 0:00:25.3]} 39. Qc8+ {[%clk 0:00:19.4]} 39... Kh7 {[%clk
0:00:25.2]} 40. Qd7 {[%clk 0:00:13.4]} 40... b3 {[%clk 0:00:24.5]} 41. Qxf7+
{[%clk 0:00:13.1]} 41... Kh8 {[%clk 0:00:23.1]} 42. Qf8+ {[%clk 0:00:13.3]}
42... Kh7 {[%clk 0:00:23.2]} 43. Qf7+ {[%clk 0:00:13.5]} 43... Kh8 {[%clk
0:00:23.3]} 44. Qf6+ {[%clk 0:00:13.9]} 44... Kg8 {[%clk 0:00:22.5]} 45. Qd8+
{[%clk 0:00:13.9]} 45... Kf7 {[%clk 0:00:21.5]} 46. Qd7+ {[%clk 0:00:14.2]}
46... Kf6 {[%clk 0:00:20.5]} 47. Qd6+ {[%clk 0:00:12.3]} 47... Qe6 {[%clk
0:00:17.8]} 48. Qf8+ {[%clk 0:00:09.8]} 48... Kg6 {[%clk 0:00:16.7]} 49. Ke2
{[%clk 0:00:05.3]} 49... Qc4+ {[%clk 0:00:14.1]} 50. Ke1 {[%clk 0:00:03.7]}
50... Qc1+ {[%clk 0:00:13.8]} 51. Kf2 {[%clk 0:00:04.6]} 51... Qxb2+ {[%clk
0:00:13.6]} 52. Kg1 {[%clk 0:00:04.1]} 52... Qf6 {[%clk 0:00:10.9]} 53. Qg8+
{[%clk 0:00:04.2]} 53... Kh5 {[%clk 0:00:05.1]} 54. Qe8+ {[%clk 0:00:03.9]}
54... Kg4 {[%clk 0:00:04.7]} 0-1

[Event "*** Titled Tuesday Blitz"]
[Site "Chess.com"]
[Date "2020.11.24"]
[Round "9"]
[White "RobertoJBM"]
[Black "SlavenPastar"]
[Result "1-0"]
[WhiteElo "2697"]
[BlackElo "2507"]
[TimeControl "180+1"]
[EndTime "12:04:20 PST"]
[Termination "RobertoJBM won by resignation"]

1. d4 {[%clk 0:03:00.9]} 1... b6 {[%clk 0:03:00.9]} 2. e4 {[%clk 0:03:00.5]}
2... Bb7 {[%clk 0:03:01.7]} 3. Bd3 {[%clk 0:02:59.6]} 3... Nf6 {[%clk
0:03:01.2]} 4. Qe2 {[%clk 0:02:58]} 4... e6 {[%clk 0:03:01.3]} 5. Nf3 {[%clk
0:02:57.4]} 5... d5 {[%clk 0:03:01.5]} 6. e5 {[%clk 0:02:57.4]} 6... Ne4 {[%clk
0:03:02]} 7. Nbd2 {[%clk 0:02:57.7]} 7... Nxd2 {[%clk 0:03:02.5]} 8. Bxd2 {[%clk
0:02:58.6]} 8... c5 {[%clk 0:03:03.1]} 9. c4 {[%clk 0:02:53]} 9... dxc4 {[%clk
0:02:58.4]} 10. Bxc4 {[%clk 0:02:53.9]} 10... cxd4 {[%clk 0:02:55.9]} 11. O-O
{[%clk 0:02:52.4]} 11... Be7 {[%clk 0:02:49.2]} 12. Rfd1 {[%clk 0:02:52.1]}
12... O-O {[%clk 0:02:42.3]} 13. Bf4 {[%clk 0:02:51.8]} 13... Nc6 {[%clk
0:02:36.1]} 14. Rd2 {[%clk 0:02:38.8]} 14... Bb4 {[%clk 0:02:10.7]} 15. Rdd1
{[%clk 0:02:32.4]} 15... a5 {[%clk 0:02:02.5]} 16. a3 {[%clk 0:02:31.7]} 16...
Bc5 {[%clk 0:02:00.4]} 17. Rac1 {[%clk 0:02:29]} 17... a4 {[%clk 0:01:46.3]} 18.
Bd3 {[%clk 0:02:23.5]} 18... Be7 {[%clk 0:01:30.3]} 19. Qe4 {[%clk 0:01:49.5]}
19... g6 {[%clk 0:01:29.7]} 20. Rxc6 {[%clk 0:01:47.4]} 20... Qd7 {[%clk
0:01:05.9]} 21. Bb5 {[%clk 0:00:54.4]} 21... Ra5 {[%clk 0:01:04.3]} 22. Rxd4
{[%clk 0:00:47.8]} 22... Qe8 {[%clk 0:00:55.8]} 23. Rxb6 {[%clk 0:00:15.6]}
23... Bxe4 {[%clk 0:00:27.4]} 24. Bxe8 {[%clk 0:00:15.5]} 24... Bc5 {[%clk
0:00:21.2]} 25. Rxe4 {[%clk 0:00:15.4]} 25... Bxb6 {[%clk 0:00:21.3]} 26. Bxa4
{[%clk 0:00:10]} 26... Rd8 {[%clk 0:00:20.5]} 27. g3 {[%clk 0:00:06.6]} 27...
Rd3 {[%clk 0:00:12.1]} 28. Kg2 {[%clk 0:00:06.7]} 28... Kg7 {[%clk 0:00:09.3]}
29. Bc2 {[%clk 0:00:06.1]} 29... Rd7 {[%clk 0:00:09.1]} 30. Be3 {[%clk
0:00:03.1]} 30... Rb5 {[%clk 0:00:06.7]} 31. b4 {[%clk 0:00:02.5]} 31... Bxe3
{[%clk 0:00:05.8]} 32. Rxe3 {[%clk 0:00:02.9]} 32... Rbd5 {[%clk 0:00:04.9]} 33.
Ba4 {[%clk 0:00:02.2]} 33... Rc7 {[%clk 0:00:05.1]} 34. Bb3 {[%clk 0:00:01.8]}
34... h6 {[%clk 0:00:04.1]} 35. Bxd5 {[%clk 0:00:01.7]} 35... exd5 {[%clk
0:00:04.8]} 36. Rd3 {[%clk 0:00:02.5]} 36... d4 {[%clk 0:00:05.6]} 37. Rxd4
{[%clk 0:00:03.4]} 37... Rc3 {[%clk 0:00:06]} 38. Re4 {[%clk 0:00:03.3]} 38...
Rxa3 {[%clk 0:00:06.9]} 39. Re3 {[%clk 0:00:04.2]} 39... Ra4 {[%clk 0:00:07]}
40. Rb3 {[%clk 0:00:04.7]} 40... Ra6 {[%clk 0:00:06.9]} 41. b5 {[%clk
0:00:05.4]} 41... Rb6 {[%clk 0:00:07.8]} 42. Nd2 {[%clk 0:00:04.7]} 42... f6
{[%clk 0:00:07.8]} 43. Nc4 {[%clk 0:00:05.2]} 43... Rb8 {[%clk 0:00:08.4]} 44.
exf6+ {[%clk 0:00:05.3]} 44... Kxf6 {[%clk 0:00:09.3]} 45. b6 {[%clk 0:00:06]}
45... Ke6 {[%clk 0:00:10]} 46. b7 {[%clk 0:00:06.6]} 46... Kd5 {[%clk
0:00:10.2]} 47. Na5 {[%clk 0:00:07.2]} 47... Kc5 {[%clk 0:00:10.5]} 48. f4
{[%clk 0:00:07.7]} 48... Kd6 {[%clk 0:00:08.2]} 49. g4 {[%clk 0:00:08.2]} 49...
Kc7 {[%clk 0:00:08.5]} 50. Kf3 {[%clk 0:00:08.8]} 50... Kd6 {[%clk 0:00:06.9]}
51. Ke4 {[%clk 0:00:08.2]} 51... Re8+ {[%clk 0:00:04.7]} 52. Kd4 {[%clk
0:00:08.5]} 52... Rb8 {[%clk 0:00:05.3]} 53. Rb6+ {[%clk 0:00:08.6]} 53... Kc7
{[%clk 0:00:05.5]} 54. Kc5 {[%clk 0:00:09.5]} 54... Rd8 {[%clk 0:00:05]} 55.
b8=Q+ {[%clk 0:00:10.4]} 55... Rxb8 {[%clk 0:00:05.4]} 56. Rxb8 {[%clk
0:00:10.8]} 56... Kxb8 {[%clk 0:00:06.3]} 57. Kd6 {[%clk 0:00:11.7]} 57... g5
{[%clk 0:00:06.8]} 58. f5 {[%clk 0:00:11.8]} 58... Kc8 {[%clk 0:00:06.7]} 59. h3
{[%clk 0:00:12.7]} 59... Kd8 {[%clk 0:00:07.2]} 60. Ke6 {[%clk 0:00:13.3]} 60...
Ke8 {[%clk 0:00:08.1]} 61. Kf6 {[%clk 0:00:14.2]} 61... h5 {[%clk 0:00:08.8]}
62. Kxg5 {[%clk 0:00:14.8]} 62... hxg4 {[%clk 0:00:09.7]} 63. hxg4 {[%clk
0:00:15.7]} 63... Kf7 {[%clk 0:00:10.6]} 64. Kf4 {[%clk 0:00:16.3]} 1-0

[Event "*** Titled Tuesday Blitz"]
[Site "Chess.com"]
[Date "2020.11.24"]
[Round "9"]
[White "Slovak_fighter2000"]
[Black "klimkoj"]
[Result "0-1"]
[WhiteElo "2465"]
[BlackElo "2618"]
[TimeControl "180+1"]
[EndTime "12:04:23 PST"]
[Termination "klimkoj won on time"]

1. d4 {[%clk 0:03:00.9]} 1... Nf6 {[%clk 0:02:59.4]} 2. Bf4 {[%clk 0:02:59.9]}
2... b6 {[%clk 0:02:57.9]} 3. Nf3 {[%clk 0:02:59.7]} 3... Bb7 {[%clk 0:02:58.1]}
4. e3 {[%clk 0:02:59.6]} 4... g6 {[%clk 0:02:52.1]} 5. Nbd2 {[%clk 0:02:59]}
5... Bg7 {[%clk 0:02:52]} 6. Be2 {[%clk 0:02:58.2]} 6... O-O {[%clk 0:02:51.6]}
7. h3 {[%clk 0:02:58.5]} 7... d6 {[%clk 0:02:51.3]} 8. O-O {[%clk 0:02:58.8]}
8... Nbd7 {[%clk 0:02:51.4]} 9. Bh2 {[%clk 0:02:58.7]} 9... c5 {[%clk
0:02:51.3]} 10. c3 {[%clk 0:02:58.3]} 10... b5 {[%clk 0:02:49]} 11. Bxb5 {[%clk
0:02:54.4]} 11... Qb6 {[%clk 0:02:48.5]} 12. Qb3 {[%clk 0:02:53.2]} 12... a6
{[%clk 0:02:41.4]} 13. Be2 {[%clk 0:02:41.7]} 13... Qc7 {[%clk 0:02:40.9]} 14.
Rfc1 {[%clk 0:02:35.4]} 14... Bc6 {[%clk 0:02:40.1]} 15. Qa3 {[%clk 0:02:32.7]}
15... Qb7 {[%clk 0:02:38.4]} 16. Rab1 {[%clk 0:02:24.7]} 16... a5 {[%clk
0:02:33.9]} 17. Qb3 {[%clk 0:02:17.2]} 17... Qa7 {[%clk 0:02:26.3]} 18. Qd1
{[%clk 0:02:15]} 18... Rfb8 {[%clk 0:02:16.3]} 19. Ne1 {[%clk 0:02:06.4]} 19...
a4 {[%clk 0:01:53.5]} 20. b3 {[%clk 0:02:01.9]} 20... axb3 {[%clk 0:01:51.9]}
21. axb3 {[%clk 0:02:02.8]} 21... Nd5 {[%clk 0:01:40.8]} 22. Bf3 {[%clk
0:01:54.1]} 22... Qb7 {[%clk 0:01:16.2]} 23. c4 {[%clk 0:01:48.2]} 23... Nxe3
{[%clk 0:00:33.2]} 24. fxe3 {[%clk 0:01:47.3]} 24... cxd4 {[%clk 0:00:34.1]} 25.
exd4 {[%clk 0:01:42]} 25... Bxd4+ {[%clk 0:00:33.7]} 26. Kh1 {[%clk 0:01:42.3]}
26... Be3 {[%clk 0:00:25.7]} 27. Bxc6 {[%clk 0:01:35.9]} 27... Qxc6 {[%clk
0:00:26.6]} 28. Rc3 {[%clk 0:01:35.1]} 28... Bh6 {[%clk 0:00:25.1]} 29. Nef3
{[%clk 0:01:27.8]} 29... Nc5 {[%clk 0:00:24.2]} 30. Qe2 {[%clk 0:01:22]} 30...
Ra2 {[%clk 0:00:20.8]} 31. Qe1 {[%clk 0:01:03.8]} 31... Ne6 {[%clk 0:00:17.8]}
32. Nf1 {[%clk 0:00:57.8]} 32... Rba8 {[%clk 0:00:16.3]} 33. b4 {[%clk
0:00:49.4]} 33... Bg7 {[%clk 0:00:16.4]} 34. Rcc1 {[%clk 0:00:40.3]} 34... Bh6
{[%clk 0:00:15.5]} 35. Rc3 {[%clk 0:00:37.9]} 35... Bg7 {[%clk 0:00:15.2]} 36.
b5 {[%clk 0:00:33.3]} 36... Qc8 {[%clk 0:00:15]} 37. b6 {[%clk 0:00:28.8]} 37...
Bxc3 {[%clk 0:00:14.3]} 38. Qxc3 {[%clk 0:00:29.7]} 38... Qb7 {[%clk 0:00:14]}
39. Ne3 {[%clk 0:00:26.7]} 39... Ng5 {[%clk 0:00:12.9]} 40. Nd5 {[%clk
0:00:24.2]} 40... Nxf3 {[%clk 0:00:11.8]} 41. Qxf3 {[%clk 0:00:23.2]} 41... Ra1
{[%clk 0:00:11.7]} 42. Nf6+ {[%clk 0:00:21.1]} 42... exf6 {[%clk 0:00:10.4]} 43.
Qxb7 {[%clk 0:00:20.6]} 43... Rxb1+ {[%clk 0:00:11.3]} 44. Bg1 {[%clk
0:00:20.8]} 44... Raa1 {[%clk 0:00:12.2]} 45. Qc8+ {[%clk 0:00:19.8]} 45... Kg7
{[%clk 0:00:12.4]} 46. b7 {[%clk 0:00:20.3]} 46... Rxg1+ {[%clk 0:00:11]} 47.
Kh2 {[%clk 0:00:20.6]} 47... Rh1+ {[%clk 0:00:11.4]} 48. Kg3 {[%clk 0:00:20.4]}
48... Ra3+ {[%clk 0:00:11.4]} 49. Kf2 {[%clk 0:00:19.6]} 49... Ra2+ {[%clk
0:00:09.9]} 50. Ke3 {[%clk 0:00:19.2]} 50... Re1+ {[%clk 0:00:10.1]} 51. Kd3
{[%clk 0:00:16.8]} 51... Ra3+ {[%clk 0:00:09.6]} 52. Kc2 {[%clk 0:00:15.4]}
52... Re2+ {[%clk 0:00:07.9]} 53. Kd1 {[%clk 0:00:14]} 53... Rb2 {[%clk
0:00:07.8]} 54. Kc1 {[%clk 0:00:11.5]} 54... Rab3 {[%clk 0:00:08]} 55. Qd7
{[%clk 0:00:05.9]} 55... Rxb7 {[%clk 0:00:08]} 56. Qxd6 {[%clk 0:00:06.2]} 56...
Rxg2 {[%clk 0:00:06.9]} 57. Qd5 {[%clk 0:00:03.3]} 57... Rbb2 {[%clk 0:00:05.4]}
58. Qe4 {[%clk 0:00:02.4]} 58... Ra2 {[%clk 0:00:05]} 59. Kb1 {[%clk 0:00:02]}
59... Raf2 {[%clk 0:00:04.7]} 60. Qd3 {[%clk 0:00:01]} 60... Rg1+ {[%clk
0:00:04.5]} 0-1

[Event "*** Titled Tuesday Blitz"]
[Site "Chess.com"]
[Date "2020.11.24"]
[Round "9"]
[White "BJthechessgod"]
[Black "Fortitudine"]
[Result "1/2-1/2"]
[WhiteElo "2237"]
[BlackElo "2356"]
[TimeControl "180+1"]
[EndTime "12:04:27 PST"]
[Termination "Game drawn by repetition"]

1. e4 {[%clk 0:03:00.9]} 1... c5 {[%clk 0:02:59.3]} 2. Nf3 {[%clk 0:02:59.3]}
2... d6 {[%clk 0:02:58.8]} 3. c3 {[%clk 0:02:56.8]} 3... Nf6 {[%clk 0:02:58.6]}
4. Be2 {[%clk 0:02:57.7]} 4... Nbd7 {[%clk 0:02:58]} 5. d3 {[%clk 0:02:47.4]}
5... g6 {[%clk 0:02:57.6]} 6. O-O {[%clk 0:02:40.1]} 6... Bg7 {[%clk 0:02:57]}
7. Re1 {[%clk 0:02:40.7]} 7... O-O {[%clk 0:02:55.9]} 8. Nbd2 {[%clk 0:02:40.6]}
8... b6 {[%clk 0:02:55.1]} 9. a4 {[%clk 0:02:40.5]} 9... a6 {[%clk 0:02:52.4]}
10. Nc4 {[%clk 0:02:35.9]} 10... Bb7 {[%clk 0:02:50.4]} 11. h3 {[%clk
0:02:31.7]} 11... h6 {[%clk 0:02:46.6]} 12. Bf4 {[%clk 0:02:31.1]} 12... Kh7
{[%clk 0:02:37.7]} 13. Qd2 {[%clk 0:02:21.5]} 13... b5 {[%clk 0:02:11.8]} 14.
axb5 {[%clk 0:02:17.7]} 14... axb5 {[%clk 0:02:12.7]} 15. Na3 {[%clk 0:02:16.4]}
15... Bc6 {[%clk 0:02:08.1]} 16. e5 {[%clk 0:02:12.7]} 16... dxe5 {[%clk
0:02:06.3]} 17. Nxe5 {[%clk 0:02:13.2]} 17... Nxe5 {[%clk 0:02:05.9]} 18. Bxe5
{[%clk 0:02:14.1]} 18... Qd7 {[%clk 0:01:53.4]} 19. Nc2 {[%clk 0:02:11.9]} 19...
Rxa1 {[%clk 0:01:51.3]} 20. Rxa1 {[%clk 0:02:11.7]} 20... Rc8 {[%clk 0:01:37.8]}
21. Ne3 {[%clk 0:02:08]} 21... Qe6 {[%clk 0:01:30.1]} 22. Bxf6 {[%clk
0:02:00.7]} 22... exf6 {[%clk 0:01:20.7]} 23. Ra7 {[%clk 0:01:57.4]} 23... f5
{[%clk 0:01:18.2]} 24. Ra6 {[%clk 0:01:51]} 24... Qd7 {[%clk 0:01:15.3]} 25. Qd1
{[%clk 0:01:38.1]} 25... f4 {[%clk 0:01:06.5]} 26. Nf1 {[%clk 0:01:34.4]} 26...
Qb7 {[%clk 0:00:59.4]} 27. Qa1 {[%clk 0:01:02.8]} 27... Bxg2 {[%clk 0:00:45.2]}
28. Ra7 {[%clk 0:00:51.7]} 28... Qd5 {[%clk 0:00:44]} 29. Bg4 {[%clk 0:00:43.6]}
29... Rf8 {[%clk 0:00:34.2]} 30. Rd7 {[%clk 0:00:40.2]} 30... Qc6 {[%clk
0:00:25.6]} 31. Nd2 {[%clk 0:00:34.7]} 31... Bd5 {[%clk 0:00:20.6]} 32. Ra7
{[%clk 0:00:26.8]} 32... h5 {[%clk 0:00:19.9]} 33. Be2 {[%clk 0:00:25.3]} 33...
f3 {[%clk 0:00:19.2]} 34. Bf1 {[%clk 0:00:23.8]} 34... Qf6 {[%clk 0:00:19.2]}
35. Qe1 {[%clk 0:00:17.3]} 35... Bc6 {[%clk 0:00:17.8]} 36. Ra6 {[%clk
0:00:16.9]} 36... Qd6 {[%clk 0:00:14.1]} 37. Ne4 {[%clk 0:00:15.9]} 37... Qc7
{[%clk 0:00:13.7]} 38. Nxc5 {[%clk 0:00:15.4]} 38... Bb7 {[%clk 0:00:12.4]} 39.
Nxb7 {[%clk 0:00:15.7]} 39... Qxb7 {[%clk 0:00:13]} 40. Rd6 {[%clk 0:00:16]}
40... Qc7 {[%clk 0:00:13.2]} 41. Rd5 {[%clk 0:00:15.6]} 41... b4 {[%clk
0:00:13.3]} 42. Qe4 {[%clk 0:00:13.3]} 42... bxc3 {[%clk 0:00:12.4]} 43. bxc3
{[%clk 0:00:13.9]} 43... Qxc3 {[%clk 0:00:12.5]} 44. Qxf3 {[%clk 0:00:13.5]}
44... Qf6 {[%clk 0:00:12.6]} 45. Qxf6 {[%clk 0:00:11.9]} 45... Bxf6 {[%clk
0:00:13.5]} 46. Rd7 {[%clk 0:00:12.1]} 46... Kg7 {[%clk 0:00:12.6]} 47. d4
{[%clk 0:00:12.3]} 47... Rd8 {[%clk 0:00:12.9]} 48. Rxd8 {[%clk 0:00:12.5]}
48... Bxd8 {[%clk 0:00:13.8]} 49. Kg2 {[%clk 0:00:11.7]} 49... Bb6 {[%clk
0:00:13.7]} 50. d5 {[%clk 0:00:11.1]} 50... Kf6 {[%clk 0:00:14.3]} 51. Bc4
{[%clk 0:00:10.7]} 51... Ke5 {[%clk 0:00:14.5]} 52. d6 {[%clk 0:00:11.2]} 52...
f6 {[%clk 0:00:13.7]} 53. d7 {[%clk 0:00:10.7]} 53... Bd8 {[%clk 0:00:13.2]} 54.
Bf7 {[%clk 0:00:10.9]} 54... g5 {[%clk 0:00:13.3]} 55. Bxh5 {[%clk 0:00:11]}
55... Kd6 {[%clk 0:00:13.6]} 56. Bg4 {[%clk 0:00:11.3]} 56... Ke5 {[%clk
0:00:14.1]} 57. Bh5 {[%clk 0:00:11.1]} 57... Ke6 {[%clk 0:00:14.2]} 58. Be8
{[%clk 0:00:11.7]} 58... Ke7 {[%clk 0:00:14.2]} 59. Kf3 {[%clk 0:00:12]} 59...
Kd6 {[%clk 0:00:14.6]} 60. Ke4 {[%clk 0:00:12.4]} 60... Bc7 {[%clk 0:00:14.9]}
61. Kf5 {[%clk 0:00:12.5]} 61... Bd8 {[%clk 0:00:15.8]} 62. Kg6 {[%clk
0:00:12.5]} 62... Be7 {[%clk 0:00:15.5]} 63. Kf7 {[%clk 0:00:12.2]} 63... Bd8
{[%clk 0:00:15]} 64. Kg6 {[%clk 0:00:11.8]} 64... Be7 {[%clk 0:00:15]} 65. Kf5
{[%clk 0:00:12.4]} 65... Bd8 {[%clk 0:00:15.5]} 66. f4 {[%clk 0:00:11.6]} 66...
Be7 {[%clk 0:00:14.8]} 67. fxg5 {[%clk 0:00:09.7]} 67... fxg5 {[%clk 0:00:15.7]}
68. Kg6 {[%clk 0:00:10.1]} 68... Bd8 {[%clk 0:00:16.2]} 69. Kf7 {[%clk
0:00:10.4]} 69... Be7 {[%clk 0:00:16.3]} 70. Kg6 {[%clk 0:00:10.4]} 70... Bd8
{[%clk 0:00:16.7]} 71. Kf5 {[%clk 0:00:10.9]} 71... Be7 {[%clk 0:00:16.9]} 72.
Ke4 {[%clk 0:00:11.3]} 72... Bd8 {[%clk 0:00:17.3]} 73. Kf3 {[%clk 0:00:11.9]}
73... Be7 {[%clk 0:00:17.5]} 74. Kg4 {[%clk 0:00:12.3]} 74... Bd8 {[%clk
0:00:17.9]} 75. Kh5 {[%clk 0:00:13.2]} 75... Ke6 {[%clk 0:00:17.9]} 76. Kg6
{[%clk 0:00:14.1]} 76... Kd6 {[%clk 0:00:18.2]} 1/2-1/2

[Event "*** Titled Tuesday Blitz"]
[Site "Chess.com"]
[Date "2020.11.24"]
[Round "9"]
[White "anon219"]
[Black "ChessicallyInclined"]
[Result "1/2-1/2"]
[WhiteElo "2758"]
[BlackElo "2550"]
[TimeControl "180+1"]
[EndTime "12:04:29 PST"]
[Termination "Game drawn - insufficient material"]

1. e4 {[%clk 0:02:57.3]} 1... e5 {[%clk 0:02:55.9]} 2. Bc4 {[%clk 0:02:56.3]}
2... Nf6 {[%clk 0:02:55.8]} 3. Nc3 {[%clk 0:02:56.1]} 3... Nxe4 {[%clk
0:02:52.9]} 4. Qh5 {[%clk 0:02:56.1]} 4... Nd6 {[%clk 0:02:52.5]} 5. Bb3 {[%clk
0:02:56.2]} 5... Be7 {[%clk 0:02:52.6]} 6. Qxe5 {[%clk 0:02:55.7]} 6... O-O
{[%clk 0:02:52.6]} 7. d3 {[%clk 0:02:55.6]} 7... Nc6 {[%clk 0:02:50.8]} 8. Qf4
{[%clk 0:02:55.1]} 8... Re8 {[%clk 0:02:48.5]} 9. Nge2 {[%clk 0:02:55.3]} 9...
Bf6 {[%clk 0:02:41.1]} 10. O-O {[%clk 0:02:55.2]} 10... Ne7 {[%clk 0:02:23.5]}
11. Ng3 {[%clk 0:02:44.7]} 11... Ng6 {[%clk 0:02:21.8]} 12. Qf3 {[%clk
0:02:44.8]} 12... Ne5 {[%clk 0:02:00.9]} 13. Qd1 {[%clk 0:02:44.5]} 13... b5
{[%clk 0:01:49]} 14. Nce4 {[%clk 0:02:40]} 14... Nxe4 {[%clk 0:01:37.9]} 15.
Nxe4 {[%clk 0:02:40.9]} 15... Bb7 {[%clk 0:01:24.6]} 16. Bf4 {[%clk 0:02:33.3]}
16... Bxe4 {[%clk 0:01:19.6]} 17. dxe4 {[%clk 0:02:34.2]} 17... Ng6 {[%clk
0:01:19.3]} 18. Bc1 {[%clk 0:02:29.2]} 18... Rxe4 {[%clk 0:01:04.1]} 19. Qd5
{[%clk 0:02:22.5]} 19... Re7 {[%clk 0:01:03]} 20. Qxb5 {[%clk 0:02:22.4]} 20...
c6 {[%clk 0:00:54.7]} 21. Qa4 {[%clk 0:02:15.8]} 21... Qc7 {[%clk 0:00:51]} 22.
c3 {[%clk 0:02:13.7]} 22... Rae8 {[%clk 0:00:48.6]} 23. Be3 {[%clk 0:02:11.3]}
23... d6 {[%clk 0:00:45.4]} 24. Rad1 {[%clk 0:02:09.4]} 24... Be5 {[%clk
0:00:29.3]} 25. h4 {[%clk 0:01:54.5]} 25... d5 {[%clk 0:00:25.4]} 26. Qg4 {[%clk
0:01:50.5]} 26... Bd6 {[%clk 0:00:17.5]} 27. h5 {[%clk 0:01:42.5]} 27... Re4
{[%clk 0:00:16.5]} 28. f4 {[%clk 0:01:08.1]} 28... Rxe3 {[%clk 0:00:13.9]} 29.
hxg6 {[%clk 0:01:08.1]} 29... hxg6 {[%clk 0:00:14.8]} 30. c4 {[%clk 0:01:05.5]}
30... Bc5 {[%clk 0:00:14.4]} 31. Kh1 {[%clk 0:01:00.4]} 31... d4 {[%clk
0:00:14.3]} 32. Bc2 {[%clk 0:00:57.1]} 32... Re2 {[%clk 0:00:13.1]} 33. Rc1
{[%clk 0:00:51.2]} 33... Qd6 {[%clk 0:00:11.3]} 34. a3 {[%clk 0:00:48.3]} 34...
d3 {[%clk 0:00:11.2]} 35. Bd1 {[%clk 0:00:40.7]} 35... Re1 {[%clk 0:00:10.2]}
36. Bf3 {[%clk 0:00:34.9]} 36... Rxc1 {[%clk 0:00:09.9]} 37. Rxc1 {[%clk
0:00:34.8]} 37... d2 {[%clk 0:00:10.5]} 38. Rd1 {[%clk 0:00:35.4]} 38... Re1+
{[%clk 0:00:10.4]} 39. Kh2 {[%clk 0:00:35.9]} 39... Bg1+ {[%clk 0:00:10.8]} 40.
Kh3 {[%clk 0:00:35.6]} 40... f5 {[%clk 0:00:09.1]} 41. Qh4 {[%clk 0:00:32.4]}
41... Rxd1 {[%clk 0:00:04.5]} 42. Bxd1 {[%clk 0:00:33.3]} 42... Qd3+ {[%clk
0:00:03.4]} 43. Qg3 {[%clk 0:00:33.4]} 43... Qxg3+ {[%clk 0:00:02.7]} 44. Kxg3
{[%clk 0:00:34.3]} 44... Bd4 {[%clk 0:00:03.2]} 45. b4 {[%clk 0:00:32.8]} 45...
Bb2 {[%clk 0:00:03.4]} 46. a4 {[%clk 0:00:33.2]} 46... Ba3 {[%clk 0:00:03.9]}
47. b5 {[%clk 0:00:33.4]} 47... cxb5 {[%clk 0:00:04.8]} 48. cxb5 {[%clk
0:00:32.9]} 48... Bb4 {[%clk 0:00:05.3]} 49. Kf3 {[%clk 0:00:33]} 49... Kf7
{[%clk 0:00:05.6]} 50. Ke2 {[%clk 0:00:33.5]} 50... Kf6 {[%clk 0:00:06]} 51. Kd3
{[%clk 0:00:32.4]} 51... g5 {[%clk 0:00:06.2]} 52. g3 {[%clk 0:00:24.5]} 52...
gxf4 {[%clk 0:00:06.2]} 53. gxf4 {[%clk 0:00:25.4]} 53... g5 {[%clk 0:00:06.9]}
54. fxg5+ {[%clk 0:00:25.8]} 54... Kxg5 {[%clk 0:00:07.8]} 55. Kc4 {[%clk
0:00:26.3]} 55... Ba5 {[%clk 0:00:07.7]} 56. Kd3 {[%clk 0:00:19.9]} 56... Kf4
{[%clk 0:00:08.2]} 57. Ke2 {[%clk 0:00:20]} 57... Kg3 {[%clk 0:00:08.3]} 58. Ke3
{[%clk 0:00:19.4]} 58... f4+ {[%clk 0:00:06.1]} 59. Ke4 {[%clk 0:00:19.7]} 59...
Bc7 {[%clk 0:00:06.3]} 60. Bh5 {[%clk 0:00:18.2]} 60... Kf2 {[%clk 0:00:06.5]}
61. Kd3 {[%clk 0:00:17.1]} 61... Ke1 {[%clk 0:00:05.7]} 62. Kc2 {[%clk
0:00:16.8]} 62... Kf2 {[%clk 0:00:04.2]} 63. Kxd2 {[%clk 0:00:16.9]} 63... f3
{[%clk 0:00:03.6]} 64. Kd1 {[%clk 0:00:10.8]} 64... Kg2 {[%clk 0:00:03.4]} 65.
Bxf3+ {[%clk 0:00:09.8]} 65... Kxf3 {[%clk 0:00:03.6]} 66. Kc2 {[%clk
0:00:10.5]} 66... Ke4 {[%clk 0:00:03.6]} 67. Kb3 {[%clk 0:00:11.4]} 67... Kd5
{[%clk 0:00:03.5]} 68. Kb4 {[%clk 0:00:12.1]} 68... Bd6+ {[%clk 0:00:03.5]} 69.
Ka5 {[%clk 0:00:12.6]} 69... Bc5 {[%clk 0:00:03.4]} 70. Ka6 {[%clk 0:00:12.8]}
70... Kc4 {[%clk 0:00:03.8]} 71. a5 {[%clk 0:00:13.3]} 71... Kb4 {[%clk
0:00:04.2]} 72. b6 {[%clk 0:00:13.7]} 72... axb6 {[%clk 0:00:05.1]} 73. axb6
{[%clk 0:00:14.4]} 73... Bxb6 {[%clk 0:00:06]} 1/2-1/2